Cogmind - Beta 10.2 --- EXPLORER MODE // 2021.03.22 @ 19:20:04 Player: Analote Result: Self-destructed Performance ------------- Evolutions (5) 2500 Regions Visited (6) 1200 Robots Destroyed (70) 350 Value Destroyed (2298) 2298 Prototype IDs (6) 120 Alien Tech Used (0) 0 Bonus (148) 148 TOTAL SCORE: 6616 Bonus ------- High Alert Combat Kills 148 Cogmind --------- Core Integrity 921/1000 Matter 283/300 Energy 540/540 System Corruption 0% Temperature Cool (0) Movement Flying (103) Ox1 Location -5/Factory Parts ------- > --- POWER (5) -------- Improved Deuterium Engine Light Fission Core Light Fission Core Light Fission Core Micro Fission Core > --- PROPULSION (6) --- Improved Flight Unit Improved VTOL Module Xenon Bombardment Thruster > --- UTILITY (5) ------ Cooling System Improved Cooling System Advanced Weight Redist. System Phase Shifter Recalibrator > --- WEAPON (2) ------- Flak Gun > --- INVENTORY (4) ---- Light Deuterium Engine Advanced Heat Sink Peak State ------------ > --- POWER ------------ Light Nuclear Core Improved Deuterium Engine Light Fission Core Light Fission Core Micro Fission Core > --- PROPULSION ------- Improved Flight Unit Improved Flight Unit Improved VTOL Module Nuclear Pulse Thruster Nuclear Pulse Thruster Nuclear Pulse Thruster > --- UTILITY ---------- Improved Heat Sink Improved Cooling System Advanced Weight Redist. System Maneuvering Thrusters Recalibrator > --- WEAPON ----------- Minigun Flak Gun > --- INVENTORY -------- Xenon Bombardment Thruster Cooling System [Rating: 72] Favorites ----------- Power Light Nuclear Core Engine Light Deuterium Engine Power Core Light Nuclear Core Propulsion Improved Flight Unit Flight Unit Improved Flight Unit Utility Core Shielding Device Advanced Weight Redist. System Storage Medium Storage Unit Processor Melee Analysis Suite Protection Core Shielding Weapon Assault Rifle Energy Gun Medium Laser Ballistic Gun Assault Rifle Build | -11 -10 -9 -8 -7 -6 -5 ------- Run | Scr Mat Mat Mat Fac Fac Fac Slots Evolved 11 | . 1 2 2 2 2 2 Power 4 | . . . 2 . 1 1 Propulsion 4 | . 1 1 . . 1 1 Utility 3 | . . 1 . 2 . . Weapon . | . . . . . . . Parts Attached 77 | 5 3 12 8 18 22 9 Power 25 | 1 1 4 4 5 7 3 Engine 17 | 1 1 4 2 5 3 1 Core 8 | . . . 2 . 4 2 Reactor . | . . . . . . . Propulsion 27 | . 2 5 2 4 11 3 Treads . | . . . . . . . Leg . | . . . . . . . Wheel . | . . . . . . . Hover . | . . . . . . . Flight 27 | . 2 5 2 4 11 3 Utility 15 | 2 . 2 . 6 2 3 Device 11 | . . 1 . 5 2 3 Storage 1 | 1 . . . . . . Processor 1 | . . 1 . . . . Hackware . | . . . . . . . Protection 2 | 1 . . . 1 . . Artifact . | . . . . . . . Weapon 10 | 2 . 1 2 3 2 . Energy Gun 3 | 1 . . 2 . . . Energy Cannon . | . . . . . . . Ballistic Gun 7 | 1 . 1 . 3 2 . Ballistic Cannon . | . . . . . . . Launcher . | . . . . . . . Special Weapon . | . . . . . . . Impact Weapon . | . . . . . . . Slashing Weapon . | . . . . . . . Piercing Weapon . | . . . . . . . Special Melee Weapon . | . . . . . . . Unidentified Prototypes 6 | . . 2 1 1 2 . Parts Lost 17 | . . 3 3 1 2 8 Power 4 | . . 1 1 . 1 1 Propulsion 6 | . . 1 . 1 . 4 Utility 2 | . . . . . . 2 Weapon 5 | . . 1 2 . 1 1 Highest Loss Streak 3 | . . 2 2 1 1 3 Average Slot Usage (%) 92 | . 78 91 94 99 97 93 Engine 9 | . 12 10 11 10 9 5 Core 7 | . . . 9 10 11 18 Flight 29 | . 16 37 33 27 30 30 Device 16 | . . 10 8 25 26 26 Storage 2 | . 12 . . . . . Processor 3 | . . 8 8 2 . . Protection 7 | . 12 10 8 6 4 . Energy Gun 3 | . 12 3 2 . . . Ballistic Gun 11 | . 12 11 12 13 12 10 Naked Turns . | . . . . . . . Heaviest Build 49 | 18 18 18 24 31 43 49 Greatest Support 52 | 3 8 23 24 33 44 52 Greatest Overweight (x) 5 | 5 5 2 . . . 1 Average Overweight (x) . | 3 2 . . . . . Largest Inventory Capacity 8 | 8 8 8 4 4 4 4 Average Capacity 4 | 6 8 4 4 4 4 4 Most Carried 4 | 2 2 4 4 4 4 3 Average Carried 2 | . . 2 3 3 3 1 Final Capacity 8 | 8 8 4 4 4 4 4 Final Carried 4 | . 2 4 4 3 4 2 Class Distribution -------------------- 53% | Hacker-Sprinter 25% | Hacker-Mutant 14% | Generator-Sprinter 6% | Generator-Mutant Dominant Class ---------------- Hacker-Mutant | -10/Materials Hacker-Sprinter | -9/Materials Hacker-Sprinter | -8/Materials Hacker-Sprinter | -7/Factory Hacker-Sprinter | -6/Factory Generator-Sprinter | -5/Factory Resources | -11 -10 -9 -8 -7 -6 -5 ----------- Run | Scr Mat Mat Mat Fac Fac Fac Matter Collected 2175 | 230 65 284 211 547 310 528 Remotely . | . . . . . . . Salvage Created 2689 | . 83 443 602 917 270 374 Parts 169 | . 8 25 43 56 10 27 Haulers Intercepted 5 | . 1 2 . 2 . . Recyclers Shooed 1 | . . . . . . 1 Parts Field Recycled . | . . . . . . . Retrieved Matter . | . . . . . . . Parts Self-Destructed . | . . . . . . . Prevented . | . . . . . . . Kills | -11 -10 -9 -8 -7 -6 -5 ------- Run | Scr Mat Mat Mat Fac Fac Fac Combat Hostiles Destroyed 48 | . 2 9 13 16 3 5 Guns 45 | . 2 9 12 14 3 5 AOE 3 | . . . 1 2 . . Classes Destroyed 12 | . 3 2 1 5 . 1 Worker 4 | . . . . 4 . . Builder 1 | . . . . . . 1 Tunneler 2 | . . . . 2 . . Hauler 5 | . 1 2 . 2 . . Watcher 10 | . 1 2 1 3 2 1 Swarmer 14 | . 2 3 3 6 . . Grunt 18 | . . 4 6 5 2 1 Brawler 1 | . . . 1 . . . Duelist 1 | . . . . 1 . . Sentry 9 | . . 2 3 2 1 1 Hunter 4 | . . . . 1 . 3 Programmer 1 | . . . . 1 . . Best Kill Streak 11 | . 2 4 11 7 2 4 Combat Bots Only 8 | . 2 3 8 3 2 2 Max Kills in Single Turn 4 | . 1 1 1 4 1 1 Gunslinging 1 | . . . . 1 . . Exploded 2 | . . . 1 2 . . Melee . | . . . . . . . Uniques/NPCs Destroyed . | . . . . . . . Combat | -11 -10 -9 -8 -7 -6 -5 -------- Run | Scr Mat Mat Mat Fac Fac Fac Damage Taken 1929 | . 20 250 267 452 264 676 Core 231 | . 3 35 70 31 13 79 Absorbed by Shields . | . . . . . . . Core Remaining (%) 94 | 100 98 91 87 95 98 . Volleys Fired 229 | . 5 64 40 62 23 35 Largest 2 | . 2 2 2 2 2 2 Hottest 79 | . 70 70 79 73 53 53 Shots Fired 397 | . 9 84 64 124 46 70 Gun 397 | . 9 84 64 124 46 70 Cannon . | . . . . . . . Launcher . | . . . . . . . Special . | . . . . . . . Kinetic 357 | . 5 67 52 117 46 70 Thermal 32 | . 4 17 11 . . . Explosive . | . . . . . . . Electromagnetic 8 | . . . 1 7 . . Robot Hit Streak 40 | . 4 15 40 27 14 31 Robot Miss Streak 4 | . 1 1 2 1 1 4 Penetration Max . | . . . . . . . Secondary Targets 3 | . . . 1 2 . . Max Gunslinging Chain 1 | . . . 1 1 . . Shots Hit Robots 341 | . 6 73 56 110 38 58 Core Hits 181 | . 4 24 29 47 22 55 Critical Hits 3 | . 1 . . 2 . . Critical Kills 1 | . 1 . . . . . Critical Parts Destroyed 2 | . . . . 2 . . Melee Attacks . | . . . . . . . Impact . | . . . . . . . Slashing . | . . . . . . . Piercing . | . . . . . . . Sneak Attacks . | . . . . . . . Combat Hostiles . | . . . . . . . Follow-up Attacks . | . . . . . . . Damage Inflicted 6078 | . 76 941 835 2205 705 1316 Guns 5566 | . 76 941 801 1872 705 1171 Cannons . | . . . . . . . Explosions 501 | . . . 34 333 . 134 Melee . | . . . . . . . Ramming 11 | . . . . . . 11 Kinetic 4995 | . 27 742 642 1708 705 1171 Thermal 760 | . 49 199 179 333 . . Explosive 134 | . . . . . . 134 Electromagnetic 178 | . . . 14 164 . . Impact . | . . . . . . . Slashing . | . . . . . . . Piercing . | . . . . . . . Highest Corruption 1 | . . . . . 1 . Average Corruption 1 | . . . . . 1 . Corruption Purged . | . . . . . . . Effects 2 | . . . . . 2 . Energy Discharges 1 | . . . . . 1 . Data Loss (minor) 1 | . . . . . 1 . Overload Shots . | . . . . . . . Overflow Damage 31 | . . . . 11 . 20 Projectiles . | . . . . . . . Explosions 31 | . . . . 11 . 20 Melee . | . . . . . . . Knockbacks . | . . . . . . . Impact . | . . . . . . . Kinetic . | . . . . . . . Secondary . | . . . . . . . Self-Inflicted Damage 106 | . . . . 101 . 5 Shots 3 | . . . . 3 . . Rammed 1 | . . . . . . 1 Targets Rammed 1 | . . . . . . 1 Kicked . | . . . . . . . Crushed . | . . . . . . . Highest Temperature 18 | . 18 . 9 1 . 13 Average Temperature 6 | . 9 . 4 1 . 4 Received Heat Transfer 822 | . . 144 189 138 156 195 Siege Activations . | . . . . . . . Robots Corrupted . | . . . . . . . Combat Hostiles . | . . . . . . . Parts Fried 1 | . . . . 1 . . Impact Corruptions . | . . . . . . . Robots Melted . | . . . . . . . Combat Hostiles . | . . . . . . . Parts Melted 4 | . 2 . . 2 . . Heat Transferred 1360 | . 148 592 420 200 . . Parts Sabotaged . | . . . . . . . Parts Stolen . | . . . . . . . Parts Stripped . | . . . . . . . Power Chain Reactions 1 | . . . 1 . . . Missiles Intercepted . | . . . . . . . Alert | -11 -10 -9 -8 -7 -6 -5 ------- Run | Scr Mat Mat Mat Fac Fac Fac Peak Influence 665 | . 79 174 490 665 323 411 Initial 189 | . . . 52 161 189 115 Average 209 | . 58 101 226 384 253 288 Maximum Alert Level 2 | . . . 2 2 1 2 Low Security (%) 53 | 100 100 100 50 17 5 17 Level 1 33 | . . . 23 40 95 68 Level 2 13 | . . . 25 41 . 13 Level 3 . | . . . . . . . Level 4 . | . . . . . . . Level 5 . | . . . . . . . High Security . | . . . . . . . Max Security . | . . . . . . . Squads Dispatched 7 | . . 1 3 1 . 2 Investigation 2 | . . . . 1 . 1 Extermination . | . . . . . . . Reinforcement 5 | . . 1 3 . . 1 Assault . | . . . . . . . Garrison . | . . . . . . . Intercept . | . . . . . . . Construction Impeded . | . . . . . . . Haulers Reinforced . | . . . . . . . Stealth | -11 -10 -9 -8 -7 -6 -5 --------- Run | Scr Mat Mat Mat Fac Fac Fac Distress Signals 2 | . . 1 1 . . . Communications Jammed . | . . . . . . . Distress Signals . | . . . . . . . Times Spotted 85 | . 3 17 18 22 6 19 Peak Tracking Total 5 | . 1 5 5 5 2 5 Tactical Retreats 5 | . . 1 1 1 . 2 Traps | -11 -10 -9 -8 -7 -6 -5 ------- Run | Scr Mat Mat Mat Fac Fac Fac Traps Triggered 1 | . . . 1 . . . Indirectly . | . . . . . . . Trap Hack Attempts . | . . . . . . . Triggered . | . . . . . . . Disarmed . | . . . . . . . Reprogrammed . | . . . . . . . Reused . | . . . . . . . Traps Extracted . | . . . . . . . Installed . | . . . . . . . Triggered . | . . . . . . . Machines | -11 -10 -9 -8 -7 -6 -5 ---------- Run | Scr Mat Mat Mat Fac Fac Fac Machines Disabled 13 | . . . 1 11 . 1 Max in Single Turn 10 | . . . 1 10 . 1 Garrison Access 2 | . . . 1 . 1 . Machines Sabotaged . | . . . . . . . Garrisons Compromised . | . . . . . . . Overloaded Fab Kills . | . . . . . . . Fab Network Shutdowns . | . . . . . . . Hacking | -11 -10 -9 -8 -7 -6 -5 --------- Run | Scr Mat Mat Mat Fac Fac Fac Machines Accessed 5 | . . . 1 2 1 1 Terminals . | . . . . . . . Fabricators . | . . . . . . . Repair Stations 3 | . . . . 2 . 1 Recycling Units . | . . . . . . . Scanalyzers . | . . . . . . . Garrison Access 2 | . . . 1 . 1 . Total Hacks 19 | . . . 2 8 4 5 Successful 9 | . . . 1 4 1 3 Failed 10 | . . . 1 4 3 2 Catastrophic . | . . . . . . . Database Lockouts . | . . . . . . . Manual . | . . . . . . . Terminals . | . . . . . . . Fabricators . | . . . . . . . Repair Stations 13 | . . . . 8 . 5 Recycling Units . | . . . . . . . Scanalyzers . | . . . . . . . Garrison Access 6 | . . . 2 . 4 . Terminal Hacks . | . . . . . . . Fabricator Hacks . | . . . . . . . Repair Station Hacks 7 | . . . . 4 . 3 Scan Component 4 | . . . . 2 . 2 Repair 3 | . . . . 2 . 1 Recycling Unit Hacks . | . . . . . . . Scanalyzer . | . . . . . . . Garrison Access Hacks 2 | . . . 1 . 1 . Seal Access 2 | . . . 1 . 1 . Unauthorized Hacks . | . . . . . . . Terminals . | . . . . . . . Fabricators . | . . . . . . . Repair Stations . | . . . . . . . Recycling Units . | . . . . . . . Scanalyzers . | . . . . . . . Garrison Access . | . . . . . . . Data Cores Recovered . | . . . . . . . Used . | . . . . . . . Hacking Detections 4 | . . . 1 1 1 1 Full Trace Events 2 | . . . . 1 . 1 Feedback Events . | . . . . . . . Feedback Blocked . | . . . . . . . Robot Schematics Acquired . | . . . . . . . Robots Built . | . . . . . . . Matter . | . . . . . . . Time . | . . . . . . . Total Robot Build Rating . | . . . . . . . Part Schematics Acquired . | . . . . . . . Parts Built . | . . . . . . . Matter . | . . . . . . . Time . | . . . . . . . Total Part Build Rating . | . . . . . . . Parts Repaired 3 | . . . . 2 . 1 Time 73 | . . . . 43 . 30 Parts Recycled . | . . . . . . . Recycled Matter . | . . . . . . . Retrieved Matter . | . . . . . . . Retrieved Components . | . . . . . . . Parts Scanalyzed . | . . . . . . . Part Schematics Acquired . | . . . . . . . Parts Damaged . | . . . . . . . Bothacking | -11 -10 -9 -8 -7 -6 -5 ------------ Run | Scr Mat Mat Mat Fac Fac Fac Used RIF Installer . | . . . . . . . Robots Hacked . | . . . . . . . Non-combat . | . . . . . . . Combat . | . . . . . . . Robot Hacks Applied . | . . . . . . . Relay Couplers Released . | . . . . . . . Robots Rewired . | . . . . . . . Allies Hacked . | . . . . . . . Hacks Repelled . | . . . . . . . Allies | -11 -10 -9 -8 -7 -6 -5 -------- Run | Scr Mat Mat Mat Fac Fac Fac Total Allies . | . . . . . . . Largest Group . | . . . . . . . Highest-Rated Group . | . . . . . . . Highest-Rated Ally . | . . . . . . . Total Orders . | . . . . . . . Ally Attacks . | . . . . . . . Total Damage . | . . . . . . . Kills . | . . . . . . . Allies Corrupted . | . . . . . . . Allies Melted . | . . . . . . . Intel | -11 -10 -9 -8 -7 -6 -5 ------- Run | Scr Mat Mat Mat Fac Fac Fac Robot Analysis Total . | . . . . . . . Derelict Logs Recovered . | . . . . . . . Drone Launches . | . . . . . . . Drone Recoveries . | . . . . . . . Exploration | -11 -10 -9 -8 -7 -6 -5 ------------- Run | Scr Mat Mat Mat Fac Fac Fac Turns Passed 2690 | 121 404 594 264 581 380 346 Spaces Moved 3174 | 47 173 355 329 995 673 602 Core 88 | 47 40 1 . . . . Treads . | . . . . . . . Legs . | . . . . . . . Wheels . | . . . . . . . Hover . | . . . . . . . Flight 3086 | . 133 354 329 995 673 602 Fastest Speed 22 | 50 117 27 27 27 25 22 Average Speed 39 | 229 183 37 27 27 25 26 Slowest Speed 360 | 300 360 197 27 28 27 103 Overloaded Moves . | . . . . . . . Propulsion Burnouts . | . . . . . . . Robots Hopped 16 | . . 1 6 6 1 2 Cave-ins Triggered . | . . . . . . . Exploration Rate (%) 27 | 4 31 42 40 33 20 20 Regions Visited 6 Branch Regions . Pre-discovered Areas . | . . . . . . . Known Exits Taken 6 | 1 1 1 1 1 1 . Unknown Exits Taken . | . . . . . . . Scrap Searched . | . . . . . . . Spaces Dug . | . . . . . . . Terrain Destroyed 91 | . . . 10 56 . 25 Melee . | . . . . . . . Projectile . | . . . . . . . AOE 91 | . . . 10 56 . 25 Terrain Rammed . | . . . . . . . Walls Destroyed . | . . . . . . . Machines Disabled . | . . . . . . . Actions | -11 -10 -9 -8 -7 -6 -5 --------- Run | Scr Mat Mat Mat Fac Fac Fac Total 4208 | 62 249 729 432 1176 839 721 Wait 657 | 6 65 288 53 85 90 70 Move 3136 | 46 172 352 316 982 670 598 Hop 16 | . . 1 6 6 1 2 Pick Up 64 | 5 4 10 7 14 18 6 Fast Attach . | . . . . . . . Attach 35 | 5 2 7 5 5 3 8 Detach . | . . . . . . . Swap 43 | . 1 5 3 13 20 1 Drop 27 | . . 2 2 9 14 . Fire 229 | . 5 64 40 62 23 35 Melee . | . . . . . . . Ram 1 | . . . . . . 1 Kick . | . . . . . . . Crush . | . . . . . . . Escape Stasis . | . . . . . . . Rewire . | . . . . . . . Trap . | . . . . . . . Miscellaneous . | . . . . . . . Route ------- -11/Scrapyard -10/Materials -9/Materials (discovered 3 exits: *Mat / *Min x2) -8/Materials -7/Factory (discovered 2 exits: *Fac / *Low) -6/Factory -5/Factory History --------- Turn | Location | Event 2 | -11/Scrapyard | Met Revision 17 22 | -11/Scrapyard | Identified exit to Materials 22 | -11/Scrapyard | Discovered exit to Materials (range 16) 122 | -11/Scrapyard | Entered Materials 122 | -10/Materials | Evolved 1 slot: Propulsion x1 312 | -10/Materials | Build established: Hacker-Mutant 520 | -10/Materials | Identified exit to Materials 520 | -10/Materials | Discovered exit to Materials (range 5) 526 | -10/Materials | Entered another Materials area 526 | -9/Materials | Evolved 2 slots: Propulsion x1, Utility x1 572 | -9/Materials | Identified exit to Mines 572 | -9/Materials | Discovered exit to Mines (range 10) 750 | -9/Materials | Discovered exit to Mines (range 15) 1104 | -9/Materials | Identified exit to Materials 1104 | -9/Materials | Discovered exit to Materials (range 16) 1120 | -9/Materials | Entered another Materials area 1120 | -8/Materials | Evolved 2 slots: Power x2 1141 | -8/Materials | Build established: Hacker-Sprinter 1335 | -8/Materials | Destroyed 8 combat bots 1363 | -8/Materials | Identified exit to Factory 1363 | -8/Materials | Discovered exit to Factory (range 11) 1384 | -8/Materials | Entered Factory 1384 | -7/Factory | Evolved 2 slots: Utility x2 1407 | -7/Factory | Repaired Core Shielding 1760 | -7/Factory | Identified exit to Lower Caves 1760 | -7/Factory | Discovered exit to Lower Caves (range 12) 1869 | -7/Factory | Repaired Imp. VTOL Module 1950 | -7/Factory | Identified exit to Factory 1950 | -7/Factory | Discovered exit to Factory (range 9) 1965 | -7/Factory | Entered another Factory area 1965 | -6/Factory | Evolved 2 slots: Power x1, Propulsion x1 2330 | -6/Factory | Identified exit to Factory 2330 | -6/Factory | Discovered exit to Factory (range 16) 2345 | -6/Factory | Entered another Factory area 2345 | -5/Factory | Evolved 2 slots: Power x1, Propulsion x1 2531 | -5/Factory | Lost 3 parts (1p1n1u) 2560 | -5/Factory | Repaired Imp. VTOL Module 2662 | -5/Factory | Lost 3 parts (2n1u) 2691 | -5/Factory | Self-destructed Last Messages --------------- 02642_ Destroyed Phase Shifter. 02642_ H-66 Slayer destroyed. 02642_ R-10 Processor collects Hvy. Assault Rifle. 02642_ K-01 Serf collects debris. 02645_ R-10 Processor collects Flexi-carbon Leg. 02646_ K-01 Serf collects debris. 02646_ Acquired Lgt. Fission Core. 02647_ K-01 Serf collects debris. 02648_ R-10 Processor collects Flexi-carbon Leg. 02648_ Acquired 50 matter. 02649_ K-01 Serf collects debris. 02650_ Slammed into R-10 Processor. 02653_ K-01 Serf collects debris. 02655_ W-25 Informer destroyed. 02658_ Acquired Lgt. Deuterium Engine. 02659_ Acquired 25 matter. 02685_ R-10 Processor collects Imp. Hover Unit. 02686_ K-01 Serf destroyed. 02688_ Nuclear Pulse Thruster destroyed. 02689_ Minigun destroyed. Map ----- +----------------------------------------------------+ | #???????# #???????????????????? | | !!! "" #???????# #???????????????????? | | !!! Y" #########+####????????????????? | | ]!! ""??# #????????????????? | | ?# """"""" #????????????????? | | # """"""" #????????????????? | | ############## # """"""" #????????????????? | | T #??????????? # """"""" ! #????????????????? | | #???????????? ?# #????????????????? | | #????????????? ?# """ #????????????????? | | " #????????????????+ """ #????????????????? | | " #????????????????# """ #????????????????? | | #????????????????# #????????????????? | | #????????????????# #????????????????? | | " #????????????????# #????????????????? | | ? ???????????#?????####"#########????????????????? | | ?????????????# ???????# #????????????????????????? | | ?????????????+ ??????# #????????????????????????? | | ?????????????# ?????# #?##############?????????? | | ?????????????# ????# #?# ! #?????????? | | ?????????????# ???#=#?# """ #?????????? | | ?????????????# ####%### "R """" #?????????? | | ?????????????# !R # """ """" #?????????? | | ?????????????# # "" """" #?????????? | | ?????????????# + = """" #?????????? | | ?????????????# @# % #?????????? | | ?????????????# # """" """" #?????????? | | ?????????????###### # """" """" #?????????? | | ??????????????????# g # """" """" #?????????? | | ??????????????????# A g g# """" """" !#?????????? | | ??????????????????# gk# #?????????? | | ??????????????????# ##############?????????? | | ??????????????????# A #??????????????????????? | | ??????????????????# #??????????????????????? | | ??????????????????# ??????????????????????? | | ??????????????????# ??????????????????????? | | ?????????????????? ?????????????????????? | | ????????????????? ?????????????????????? | | ?????????????????? ?????????????????????? | | ???????????????????"""""" ??????????????????????? | | ????????????????????????? ???????????????????????? | | ?????????????????????????????????????????????????? | | ?????????????????????????????????????????????????? | | ?????????????????????????????????????????????????? | | ?????????????????????????????????????????????????? | | ?????????????????????????????????????????????????? | | ?????????????????????????????????????????????????? | | ?????????????????????????????????????????????????? | | ?????????????????????????????????????????????????? | | ?????????????????????????????????????????????????? | +----------------------------------------------------+ Best States ------------- Heat Dissipation 100 Energy Generation 68 Energy Capacity 540 Matter Stores 300 Matter Capacity 300 Sight Range 16 Terrain Scan Density 10 Additional Mass Support 9 Resistance: KI 35 Resistance: TH 35 Resistance: EX 35 Resistance: EM 35 Resistance: I 35 Resistance: S 35 Resistance: P 35 Core Shielding 20 Phase Shifting 5 Evasion (%) 71 Melee Accuracy 5 Offensive Hacking 20 Item Schematics ----------------- None Robot Schematics ------------------ None Fabricated ------------ Nothing Alien Tech Used ----------------- None Achievements -------------- None Challenges ------------ None Game ------ Seed AbsorptionBehemothPurifier Manual? 0 Play Time 00:32:36 Cumulative 35.5 hours Start 2021.03.22 @ 18:48:41 End 2021.03.22 @ 19:20:04 Sessions 1 Manual Loads 0 Difficulty Explorer Special Mode None Game No. 49 Rogue 0 Adventurer 0 Explorer 49 Win Type - Total 0 Types 0/0/0/0/0/0/0/0/0 Lore% 32 Gallery% 46 Achievement% 37 Wizard Run 0 Options --------- ASCII 0 Keyboard 0 Movement Mouse Keybinds 0 Fullscreen 1 Font 12/Smallcaps Map View 83x54 Tactical HUD 1 Map Filters NONE Filters NONE Steam 1 RUN: 67397fb8-3a2f-42fa-910b-d29c33345414